fUSD/lending_fUSD_20250623
["ID","MTS","AMOUNT","RATE_DAILY","PERIOD"]
[367066125,1750643472578,-736.01,0.0003497,7]
[367066126,1750643472588,-490.0,0.0003497,7]
[367066127,1750643472598,-490.0,0.0003497,7]
[367066128,1750643472608,-620.27,0.0003497,7]
[367066129,1750643472619,-490.0,0.0003497,7]
[367066130,1750643472628,-355.54986892,0.0003497,7]
[367066131,1750643472638,-490.0,0.0003497,7]
[367066132,1750643472649,-1027.5,0.0003497,7]
[367066133,1750643472659,-532.42,0.0003497,7]
[367066134,1750643472670,-490.0,0.0003497,7]
[367066135,1750643472682,-490.0,0.0003497,7]
[367066136,1750643472692,-1376.4,0.0003497,7]
[367066137,1750643472704,-490.0,0.0003497,7]
[367066138,1750643472714,-992.15,0.0003497,7]
[367066139,1750643472724,-490.0,0.0003497,7]
[367066140,1750643472734,-2013.51,0.0003497,7]
[367066141,1750643472745,-490.0,0.0003497,7]
[367066142,1750643472756,-490.0,0.0003497,7]
[367066143,1750643472767,-490.0,0.0003497,7]
[367066144,1750643472777,-1076.4,0.0003497,7]
[367066145,1750643472788,-353.22827128,0.0003497,7]
[367066146,1750643472798,-2015.64,0.0003497,7]
[367066147,1750643472808,-1503.79,0.0003497,7]
[367066148,1750643472819,-490.0,0.0003497,7]
[367066149,1750643472830,-490.0,0.0003497,7]
[367066150,1750643472840,-490.0,0.0003497,7]
[367066151,1750643472850,-490.0,0.0003497,7]
[367066152,1750643472860,-492.40361914,0.0003497,7]
[367066153,1750643472870,-1365.2,0.0003497,7]
[367066154,1750643472880,-490.0,0.0003497,7]
[367066155,1750643472889,-490.0,0.0003497,7]
[367066156,1750643472899,-490.0,0.0003497,7]
[367066157,1750643472909,-490.0,0.0003497,7]
[367066158,1750643472918,-491.92687699,0.0003497,7]
[367066159,1750643472928,-490.0,0.0003497,7]
[367066160,1750643472937,-490.0,0.0003497,7]
[367066161,1750643472946,-536.7,0.0003497,7]
[367066162,1750643472956,-490.0,0.0003497,7]
[367066163,1750643472967,-490.0,0.0003497,7]
[367066164,1750643472976,-589.78,0.0003497,7]
[367066165,1750643472987,-1484.13,0.0003497,7]
[367066166,1750643472997,-490.0,0.0003497,7]
[367066167,1750643473008,-490.0,0.0003497,7]
[367066168,1750643473020,-490.0,0.0003497,7]
[367066169,1750643473031,-490.0,0.0003497,7]
[367066170,1750643473042,-1993.57,0.0003497,7]
[367066171,1750643473052,-490.0,0.0003497,7]
[367066172,1750643473061,-2629.1,0.0003497,7]
[367066173,1750643473070,-588.0,0.0003497,7]
[367066174,1750643473080,-508.22,0.0003497,7]
[367066175,1750643473089,-5041.32118816,0.0003497,7]
[367066176,1750643473099,-1904.26,0.0003497,7]
[367066177,1750643473108,-490.0,0.0003497,7]
[367066178,1750643473118,-490.0,0.0003497,7]
[367066179,1750643473127,-490.0,0.0003497,7]
[367066180,1750643473137,-494.13663252,0.0003497,7]
[367066181,1750643473147,-322.16114249,0.0003497,7]
[367066182,1750643473157,-490.0,0.0003497,7]
[367066183,1750643473166,-490.0,0.0003497,7]
[367066184,1750643473175,-490.0,0.0003497,7]
[367066185,1750643473185,-490.0,0.0003497,7]
[367066186,1750643473195,-2335.37,0.0003497,7]
[367066187,1750643473205,-490.0,0.0003497,7]
[367066188,1750643473214,-490.0,0.0003497,7]
[367066189,1750643473223,-490.0,0.0003497,7]
[367066190,1750643473233,-1280.35,0.0003497,7]
[367066191,1750643473243,-490.0,0.0003497,7]
[367066192,1750643473253,-490.0,0.0003497,7]
[367066193,1750643473262,-490.0,0.0003497,7]
[367066194,1750643473271,-490.0,0.0003497,7]
[367066195,1750643473282,-493.9,0.0003497,7]
[367066196,1750643473292,-490.0,0.0003497,7]
[367066197,1750643473303,-490.0,0.0003497,7]
[367066198,1750643473534,-646.47,0.0003497,7]
[367066199,1750643473552,-1157.0,0.0003497,7]
[367066200,1750643473562,-490.0,0.0003497,7]
[367066201,1750643473571,-1903.96,0.0003497,7]
[367066202,1750643473581,-749.65,0.0003497,7]
[367066203,1750643473591,-1067.72,0.0003497,7]
[367066204,1750643473600,-490.0,0.0003497,7]
[367066205,1750643473610,-494.20698059,0.0003497,7]
[367066206,1750643473619,-492.22290919,0.0003497,7]
[367066207,1750643473628,-490.0,0.0003497,7]
[367066208,1750643473638,-975.3,0.0003497,7]
[367066209,1750643473648,-490.0,0.0003497,7]
[367066210,1750643473657,-490.0,0.0003497,7]
[367066211,1750643473667,-499.34166202,0.0003497,7]
[367066212,1750643473678,-2000.83,0.0003497,7]
[367066213,1750643473688,-1783.87,0.0003497,7]
[367066214,1750643473697,-490.0,0.0003497,7]
[367066215,1750643473707,-490.0,0.0003497,7]
[367066216,1750643473717,-490.0,0.0003497,7]
[367066217,1750643473726,-496.72247796,0.0003497,7]
[367066218,1750643473736,-722.01,0.0003497,7]
[367066219,1750643473745,-490.0,0.0003497,7]
[367066220,1750643473755,-490.0,0.0003497,7]
[367066221,1750643473764,-885.25,0.0003497,7]
[367066222,1750643473773,-1643.27,0.0003497,7]
[367066223,1750643473782,-490.0,0.0003497,7]
[367066224,1750643473791,-490.0,0.0003497,7]
[367066225,1750643473800,-1696.09,0.0003497,7]
[367066226,1750643473810,-490.0,0.0003497,7]
[367066227,1750643473819,-490.0,0.0003497,7]
[367066228,1750643473829,-2179.3,0.0003497,7]
[367066229,1750643473839,-492.6153895,0.0003497,7]
[367066230,1750643473849,-490.0,0.0003497,7]
[367066231,1750643473858,-490.0,0.0003497,7]
[367066232,1750643473867,-490.0,0.0003497,7]
[367066233,1750643473876,-490.0,0.0003497,7]
[367066234,1750643473886,-490.0,0.0003497,7]
[367066235,1750643473896,-490.0,0.0003497,7]
[367066236,1750643473906,-1316.31,0.0003497,7]
[367066237,1750643473917,-847.47,0.0003497,7]
[367066238,1750643473926,-490.0,0.0003497,7]
[367066239,1750643473936,-1209.27,0.0003497,7]
[367066240,1750643473947,-490.0,0.0003497,7]
[367066241,1750643473956,-700.67,0.0003497,7]
[367066242,1750643473966,-579.13,0.0003497,7]
[367066243,1750643473975,-490.0,0.0003497,7]
[367066244,1750643473984,-490.0,0.0003497,7]
[367066245,1750643473993,-490.0,0.0003497,7]
[367066246,1750643474003,-492.35090863,0.0003497,7]
[367066247,1750643474013,-490.0,0.0003497,7]
[367066248,1750643474024,-490.0,0.0003497,7]
[367066249,1750643474034,-1826.48,0.0003497,7]
[367066250,1750643474044,-490.0,0.0003497,7]
[367066251,1750643474054,-490.0,0.0003497,2]
[367066252,1750643474063,-490.0,0.0003497,7]
[367066253,1750643474072,-490.0,0.0003497,7]
[367066254,1750643474081,-311.59612135,0.0003497,7]
[367066255,1750643474091,-1637.58,0.0003497,7]
[367066256,1750643474100,-490.0,0.0003497,7]
[367066257,1750643474109,-490.0,0.0003497,7]
[367066258,1750643474118,-611.8,0.0003497,7]
[367066259,1750643474128,-490.0,0.0003497,7]
[367066260,1750643474138,-490.0,0.0003497,7]
[367066261,1750643474147,-490.0,0.0003497,7]
[367066262,1750643474158,-907.06,0.0003497,7]
[367066263,1750643474167,-490.0,0.0003497,7]
[367066264,1750643474176,-490.0,0.0003497,7]
[367066265,1750643474186,-490.0,0.0003497,7]
[367066266,1750643474195,-490.0,0.0003497,7]
[367066267,1750643474205,-678.49,0.0003497,7]
[367066268,1750643474216,-490.0,0.0003497,7]
[367066269,1750643474226,-490.0,0.0003497,7]
[367066270,1750643474235,-1021.91,0.0003497,7]
[367066271,1750643474245,-808.98,0.0003497,7]
[367066272,1750643474254,-490.0,0.0003497,7]
[367066273,1750643474263,-898.08,0.0003497,7]
[367066274,1750643474273,-1242.47,0.0003497,7]
[367066275,1750643474283,-490.0,0.0003497,7]
[367066276,1750643474292,-490.0,0.0003497,7]
[367066277,1750643474302,-490.0,0.0003497,7]
[367066278,1750643474311,-1218.45,0.0003497,7]
[367066279,1750643474320,-490.0,0.0003497,7]
[367066280,1750643474329,-490.0,0.0003497,7]
[367066281,1750643474339,-490.0,0.0003497,7]
[367066282,1750643474350,-490.0,0.0003497,7]
[367066283,1750643474359,-1623.62,0.0003497,7]
[367066284,1750643474368,-490.0,0.0003497,7]
[367066285,1750643474378,-810.75,0.0003497,7]
[367066286,1750643474387,-490.0,0.0003497,7]
[367066287,1750643474397,-490.0,0.0003497,7]
[367066288,1750643474407,-490.0,0.0003497,7]
[367066289,1750643474417,-985.64,0.0003497,7]
[367066290,1750643474430,-490.0,0.0003497,7]
[367066291,1750643474441,-490.0,0.0003497,7]
[367066292,1750643474451,-875.05,0.0003497,7]
[367066293,1750643474461,-490.0,0.0003497,7]
[367066294,1750643474471,-490.0,0.0003497,7]
[367066295,1750643474481,-559.6,0.0003497,7]
[367066296,1750643474490,-490.0,0.0003497,7]
[367066297,1750643474500,-1483.32,0.0003497,7]
[367066298,1750643474509,-490.0,0.0003497,7]
[367066299,1750643474519,-890.7,0.0003497,7]
[367066300,1750643474529,-1293.76,0.0003497,7]
[367066301,1750643474539,-1698.1,0.0003497,7]
[367066302,1750643474548,-490.0,0.0003497,7]
[367066303,1750643474557,-1337.94,0.0003497,7]
[367066304,1750643474567,-490.0,0.0003497,7]
[367066305,1750643474576,-490.0,0.0003497,7]
[367066306,1750643474585,-490.0,0.0003497,7]
[367066307,1750643474595,-1898.8,0.0003497,7]
[367066308,1750643474605,-313.64075883,0.0003497,7]
[367066309,1750643474614,-511.69850906,0.0003497,7]
[367066310,1750643474624,-1009.01,0.0003497,7]
[367066311,1750643474633,-490.0,0.0003497,7]
[367066312,1750643474643,-1673.68,0.0003497,7]
[367066313,1750643474653,-490.0,0.0003497,7]
[367066314,1750643474662,-559.81,0.0003497,7]
[367066315,1750643474671,-490.0,0.0003497,7]
[367066316,1750643474680,-490.0,0.0003497,7]
[367066317,1750643474689,-490.0,0.0003497,7]
[367066318,1750643474699,-1993.23,0.0003497,7]
[367066319,1750643474708,-490.0,0.0003497,7]
[367066320,1750643474718,-490.0,0.0003497,7]
[367066321,1750643474727,-490.0,0.0003497,7]
[367066322,1750643474737,-892.76,0.0003497,7]
[367066323,1750643474747,-1478.44,0.0003497,7]
[367066324,1750643474756,-1299.56,0.0003497,7]
[367066325,1750643474766,-1958.85,0.0003497,7]
[367066326,1750643474775,-907.73,0.0003497,7]
[367066327,1750643474784,-1768.26,0.0003497,7]
[367066328,1750643474794,-490.0,0.0003497,7]
[367066329,1750643474803,-1016.42,0.0003497,7]
[367066330,1750643474813,-3737.26,0.0003497,7]
[367066331,1750643474823,-490.0,0.0003497,7]
[367066332,1750643474832,-499.03495791,0.0003497,7]
[367066333,1750643474842,-490.0,0.0003497,7]
[367066334,1750643474851,-974.27,0.0003497,7]
[367066335,1750643474860,-490.0,0.0003497,7]
[367066336,1750643474869,-490.0,0.0003497,7]
[367066337,1750643474878,-490.0,0.0003497,7]
[367066338,1750643474888,-630.0,0.0003497,2]
[367066339,1750643474897,-500.0,0.0003497,2]
[367066340,1750643474906,-599.37473815,0.0003497,2]
[367066341,1750643474915,-502.90048372,0.00034973,5]
[367066342,1750643474925,-500.0,0.00034973,5]
[367066343,1750643474934,-500.0,0.00034973,5]
[367066344,1750643474944,-500.0,0.00034973,5]
[367066345,1750643474954,-623.64987476,0.00034973,5]
[367066346,1750643474963,-500.0,0.00034973,5]
[367066347,1750643474973,-503.20692446,0.00034973,5]
[367066348,1750643474982,-542.43,0.00034973,7]
[367066349,1750643474991,-1000.0,0.00034974,7]
[367066350,1750643475000,-490.0,0.00034974,7]
[367066351,1750643475010,-18153.94,0.00034974,7]
[367066352,1750643475020,-1328.27,0.00034974,7]
[367066353,1750643475029,-3318.82,0.00034974,7]
[367066354,1750643475038,-1945.36,0.00034974,7]
[367066355,1750643475048,-2645.15,0.00034974,7]
[367066356,1750643475057,-2232.05,0.00034974,7]
[367066357,1750643475066,-2688.67,0.00034974,7]
[367066358,1750643475075,-490.0,0.00034975,7]
[367066359,1750643475085,-490.0,0.00034975,7]
[367066360,1750643475094,-490.0,0.00034975,7]
[367066361,1750643475104,-490.0,0.00034975,7]
[367066362,1750643475113,-490.0,0.00034975,7]
[367066363,1750643475123,-490.0,0.00034975,7]
[367066364,1750643475132,-490.0,0.00034975,7]
[367066365,1750643475142,-842.03,0.00034975,7]
[367066366,1750643475151,-1133.74,0.00034975,7]
[367066367,1750643475161,-1569.18,0.00034979,7]
[367066368,1750643475172,-1569.18,0.00034979,7]
[367066369,1750643475181,-1569.18,0.00034979,7]
[367066370,1750643475191,-1569.18,0.00034979,7]
[367066371,1750643475200,-1569.19963267,0.00034979,7]
[367066372,1750643475210,-503.2,0.00034979,7]
[367066373,1750643475220,-372.0,0.0003498,120]
[367066374,1750643475229,-601.81,0.0003498,7]
[367066375,1750643475239,-358.16993391,0.0003498,7]
[367066376,1750643475248,-490.0,0.0003498,7]
[367066377,1750643475258,-490.0,0.0003498,7]
[367066378,1750643475268,-490.0,0.0003498,7]
[367066379,1750643475277,-490.0,0.0003498,7]
[367066380,1750643475287,-490.0,0.0003498,7]
[367066381,1750643475296,-490.0,0.0003498,7]
[367066382,1750643475307,-582.06956163,0.0003498,7]
[367066383,1750643475317,-490.0,0.0003498,7]
[367066384,1750643475328,-490.0,0.0003498,7]
[367066385,1750643475338,-711.96,0.0003498,7]
[367066386,1750643475352,-490.0,0.0003498,7]
[367066387,1750643475361,-490.0,0.0003498,7]
[367066388,1750643475371,-778.15,0.0003498,7]
[367066389,1750643475381,-225.08189989,0.0003498,7]
[367066390,1750643475391,-952.18,0.0003498,7]
[367066391,1750643475402,-490.0,0.0003498,7]
[367066392,1750643475412,-490.0,0.0003498,7]
[367066393,1750643475423,-490.0,0.0003498,7]
[367066394,1750643475434,-509.53,0.0003498,7]
[367066395,1750643475444,-490.0,0.0003498,7]
[367066396,1750643475453,-490.0,0.0003498,7]
[367066397,1750643475464,-490.0,0.0003498,7]
[367066398,1750643475474,-1093.11,0.0003498,7]
[367066399,1750643475484,-1257.02,0.0003498,2]
[367066400,1750643475493,-500.0,0.0003498,7]
[367066401,1750643475503,-500.0,0.0003498,7]
[367066402,1750643475512,-542.43,0.0003498,7]
[367066403,1750643475522,-503.2,0.0003498,7]
[367066404,1750643475531,-490.0,0.00034981,7]
[367066405,1750643475541,-490.0,0.00034981,7]
[367066406,1750643475551,-490.0,0.00034981,7]
[367066407,1750643475561,-490.0,0.00034981,7]
[367066408,1750643475571,-241.92763541,0.00034981,7]
[367066409,1750643475581,-490.0,0.00034981,7]
[367066410,1750643475590,-490.0,0.00034981,7]
[367066411,1750643475600,-491.91494862,0.00034981,7]
[367066412,1750643475609,-490.0,0.00034981,7]
[367066413,1750643475619,-490.0,0.00034981,7]
[367066414,1750643475628,-492.05288122,0.00034981,7]
[367066415,1750643475638,-490.0,0.00034981,5]
[367066416,1750643475647,-311.58244231,0.00034981,7]
[367066417,1750643475656,-492.52562727,0.00034981,7]
[367066418,1750643475666,-492.83594964,0.00034981,7]
[367066419,1750643475675,-490.0,0.00034981,7]
[367066420,1750643475685,-490.0,0.00034981,2]
[367066421,1750643475694,-490.42602313,0.00034981,7]
[367066422,1750643475705,-490.0,0.00034981,7]
[367066423,1750643475715,-490.0,0.00034981,7]
[367066424,1750643475724,-492.26598683,0.00034981,7]
[367066425,1750643475734,-490.0,0.00034981,7]
[367066426,1750643475743,-490.0,0.00034981,7]
[367066427,1750643475753,-490.0,0.00034981,7]
[367066428,1750643475762,-490.0,0.00034981,7]
[367066429,1750643475771,-430.36607474,0.00034981,7]
[367066430,1750643475781,-490.0,0.00034981,7]
[367066431,1750643475791,-490.0,0.00034981,7]
[367066432,1750643475800,-490.0,0.00034981,7]
[367066433,1750643475811,-490.0,0.00034981,7]
[367066434,1750643475821,-498.12912066,0.00034981,7]
[367066435,1750643475831,-490.0,0.00034981,7]
[367066436,1750643475840,-517.94060383,0.00034981,7]
[367066437,1750643475849,-490.0,0.00034981,7]
[367066438,1750643475858,-376.83384837,0.00034981,7]
[367066439,1750643475868,-176.98447182,0.00034981,7]
[367066440,1750643475877,-175.42123719,0.00034981,7]
[367066441,1750643475886,-410.46140542,0.00034981,7]
[367066442,1750643475896,-490.0,0.00034981,7]
[367066443,1750643475905,-490.0,0.00034981,7]
[367066444,1750643475915,-490.0,0.00034981,7]
[367066445,1750643475992,-490.0,0.00034981,7]
[367066446,1750643476001,-490.0,0.00034981,7]
[367066447,1750643476010,-1917.43,0.00034981,7]
[367066448,1750643476020,-1509.86,0.00034981,7]
[367066449,1750643476029,-1730.65,0.00034981,7]
[367066450,1750643476038,-490.0,0.00034981,7]
[367066451,1750643476047,-490.0,0.00034981,7]
[367066452,1750643476057,-852.52,0.00034981,7]
[367066453,1750643476068,-1792.35,0.00034981,7]
[367066454,1750643476078,-879.43,0.00034981,7]
[367066455,1750643476092,-707.45,0.00034981,7]
[367066456,1750643476102,-1553.47,0.00034981,7]
[367066457,1750643476114,-950.75,0.00034981,7]
[367066458,1750643476124,-755.47,0.00034981,7]
[367066459,1750643476135,-1805.87,0.00034981,7]
[367066460,1750643476144,-2148.73,0.00034981,7]
[367066461,1750643476155,-1076.99,0.00034981,7]
[367066462,1750643476165,-2107.52,0.00034981,7]
[367066463,1750643476176,-1692.05,0.00034981,7]
[367066464,1750643476186,-490.0,0.00034981,7]
[367066465,1750643476195,-490.0,0.00034981,7]
[367066466,1750643476206,-1161.23,0.00034981,7]
[367066467,1750643476215,-532.62,0.00034981,7]
[367066468,1750643476225,-1028.36,0.00034981,7]
[367066469,1750643476234,-1679.7,0.00034981,7]
[367066470,1750643476244,-1765.97,0.00034981,7]
[367066471,1750643476254,-1157.31,0.00034981,7]
[367066472,1750643476263,-500.13,0.00034981,7]
[367066473,1750643476272,-2567.83,0.00034981,7]
[367066474,1750643476281,-943.55,0.00034981,7]
[367066475,1750643476291,-1695.12,0.00034981,7]
[367066476,1750643476300,-1929.42,0.00034981,7]
[367066477,1750643476309,-490.0,0.00034981,7]
[367066478,1750643476319,-490.0,0.00034981,7]
[367066479,1750643476329,-3166.32,0.00034981,7]
[367066480,1750643476338,-604.96,0.00034981,7]
[367066481,1750643476349,-787.97,0.00034981,7]
[367066482,1750643476361,-490.0,0.00034981,7]
[367066483,1750643476370,-551.14,0.00034981,7]
[367066484,1750643476380,-2221.93,0.00034981,7]
[367066485,1750643476391,-1097.22,0.00034981,7]
[367066486,1750643476402,-2007.57,0.00034981,7]
[367066487,1750643476412,-1000.0,0.00034981,120]
[367066488,1750643476421,-2893.01,0.00034981,7]
[367066489,1750643476431,-348.74059074,0.00034981,7]
[367066490,1750643476441,-490.0,0.00034981,7]
[367066491,1750643476450,-490.0,0.00034981,7]
[367066492,1750643476460,-596.58,0.00034981,7]
[367066493,1750643476470,-300.0,0.00034981,7]
[367066494,1750643476479,-490.0,0.00034981,7]
[367066495,1750643476489,-490.0,0.00034981,7]
[367066496,1750643476499,-1536.95,0.00034981,7]
[367066497,1750643476508,-1338.09,0.00034981,7]
[367066498,1750643476517,-303.59384349,0.00034981,7]
[367066499,1750643476527,-2667.04,0.00034981,7]
[367066500,1750643476538,-1676.96,0.00034981,7]
[367066501,1750643476548,-2658.35,0.00034981,7]
[367066502,1750643476558,-1002.63,0.00034981,7]
[367066503,1750643476568,-1722.58,0.00034981,7]
[367066504,1750643476578,-2075.3,0.00034981,7]
[367066505,1750643476589,-493.32,0.00034981,7]
[367066506,1750643476598,-490.0,0.00034981,7]
[367066507,1750643476608,-940.41,0.00034981,7]
[367066508,1750643476617,-555.82,0.00034981,7]
[367066509,1750643476627,-2459.76,0.00034981,7]
[367066510,1750643476636,-1889.05,0.00034981,7]
[367066511,1750643476645,-1361.92,0.00034981,7]
[367066512,1750643476655,-490.0,0.00034981,7]
[367066513,1750643476664,-2017.95,0.00034981,7]
[367066514,1750643476673,-1484.08,0.00034981,7]
[367066515,1750643476683,-771.81,0.00034981,7]
[367066516,1750643476691,-1850.73,0.00034981,7]
[367066517,1750643476701,-490.0,0.00034981,7]
[367066518,1750643476712,-2114.91,0.00034981,7]
[367066519,1750643476721,-1860.81,0.00034981,7]
[367066520,1750643476730,-2143.98,0.00034981,7]
[367066521,1750643476739,-1740.15,0.00034981,7]
[367066522,1750643476749,-490.0,0.00034981,7]
[367066523,1750643476758,-957.13,0.00034981,7]
[367066524,1750643476767,-1529.43,0.00034981,7]
[367066525,1750643476777,-490.0,0.00034981,7]
[367066526,1750643476786,-1435.72,0.00034981,7]
[367066527,1750643476795,-2751.79,0.00034981,7]
[367066528,1750643476805,-1824.17,0.00034981,7]
[367066529,1750643476814,-2344.49,0.00034981,7]
[367066530,1750643476823,-1093.11,0.00034985,7]
[367066531,1750643476833,-1257.02,0.00034985,2]
[367066532,1750643476842,-500.0,0.00034985,7]
[367066533,1750643476852,-500.0,0.00034985,7]
[367066534,1750643476862,-542.43,0.00034985,7]
[367066535,1750643476871,-1974.42,0.00034985,7]
[367066536,1750643476880,-2163.25,0.00034986,7]
[367066537,1750643476889,-222.57859206,0.00034986,7]
[367066538,1750643476899,-490.0,0.00034986,7]
[367066539,1750643476908,-584.22,0.00034986,7]
[367066540,1750643476917,-761.99,0.00034986,7]
[367066541,1750643476926,-1036.85,0.00034986,7]
[367066542,1750643476935,-1942.26,0.00034986,7]
[367066543,1750643476945,-1935.23,0.00034986,7]
[367066544,1750643476955,-2579.66,0.00034986,7]
[367066545,1750643476968,-756.45,0.00034986,7]
[367066546,1750643476990,-1228.4,0.00034986,7]
[367066547,1750643477008,-1054.2,0.00034986,7]
[367066548,1750643477017,-542.77,0.00034986,7]
[367066549,1750643477027,-1118.71,0.00034986,7]
[367066550,1750643477037,-1556.9,0.00034986,7]
[367066551,1750643477047,-1464.77,0.00034986,7]
[367066552,1750643477056,-1773.91,0.00034986,7]
[367066553,1750643477066,-1498.93,0.00034986,7]
[367066554,1750643477075,-490.0,0.00034986,7]
[367066555,1750643477086,-1004.92,0.00034986,7]
[367066556,1750643477096,-675.72,0.00034986,7]
[367066557,1750643477106,-490.0,0.00034986,7]
[367066558,1750643477115,-542.43,0.00034986,7]
[367066559,1750643477125,-542.43,0.00034986,7]
[367066560,1750643477135,-542.43,0.00034986,7]
[367066561,1750643477144,-542.43,0.00034986,7]
[367066562,1750643477153,-542.5961292,0.00034986,7]
[367066563,1750643477163,-490.0,0.00034987,7]
[367066564,1750643477172,-490.0,0.00034987,7]
[367066565,1750643477181,-490.0,0.00034987,7]
[367066566,1750643477190,-490.0,0.00034987,7]
[367066567,1750643477200,-1308.2,0.00034987,7]
[367066568,1750643477210,-490.0,0.00034987,7]
[367066569,1750643477219,-490.0,0.00034987,7]
[367066570,1750643477229,-491.81851762,0.00034987,7]
[367066571,1750643477240,-490.0,0.00034987,7]
[367066572,1750643477250,-490.0,0.00034987,7]
[367066573,1750643477259,-490.0,0.00034987,7]
[367066574,1750643477268,-490.0,0.00034987,7]
[367066575,1750643477278,-490.0,0.00034987,7]
[367066576,1750643477288,-647.35,0.00034987,7]
[367066577,1750643477298,-490.0,0.00034987,7]
[367066578,1750643477307,-1341.0,0.00034987,7]
[367066579,1750643477317,-490.0,0.00034987,7]
[367066580,1750643477327,-490.0,0.00034987,7]
[367066581,1750643477336,-490.0,0.00034987,7]
[367066582,1750643477345,-809.27,0.00034987,7]
[367066583,1750643477358,-493.00915489,0.00034987,7]
[367066584,1750643477368,-745.81,0.00034987,7]
[367066585,1750643477377,-859.52,0.00034987,7]
[367066586,1750643477386,-490.0,0.00034987,7]
[367066587,1750643477397,-714.51,0.00034987,7]
[367066588,1750643477407,-517.23,0.00034987,7]
[367066589,1750643477416,-490.0,0.00034987,7]
[367066590,1750643477427,-1526.55,0.00034987,7]
[367066591,1750643477436,-490.0,0.00034987,7]
[367066592,1750643477446,-490.0,0.00034987,7]
[367066593,1750643477456,-729.82,0.00034987,7]
[367066594,1750643477466,-498.65187821,0.00034987,7]
[367066595,1750643477476,-490.0,0.00034987,7]
[367066596,1750643477485,-510.64152376,0.00034987,7]
[367066597,1750643477494,-490.0,0.00034987,7]
[367066598,1750643477504,-490.0,0.00034987,7]
[367066599,1750643477514,-1164.4,0.00034987,7]
[367066600,1750643477523,-490.0,0.00034987,7]
[367066601,1750643477533,-490.0,0.00034987,7]
[367066602,1750643477543,-559.57,0.00034987,7]
[367066603,1750643477552,-1025.71,0.00034987,7]
[367066604,1750643477561,-490.0,0.00034987,7]
[367066605,1750643477570,-490.0,0.00034987,7]
[367066606,1750643477580,-490.0,0.00034987,7]
[367066607,1750643477589,-620.31,0.00034987,7]
[367066608,1750643477600,-490.0,0.00034987,7]
[367066609,1750643477609,-490.0,0.00034987,7]
[367066610,1750643477619,-780.35,0.00034987,7]
[367066611,1750643477629,-662.58,0.00034987,7]
[367066612,1750643477639,-651.1,0.00034987,7]
[367066613,1750643477649,-490.0,0.00034987,7]
[367066614,1750643477658,-1038.02,0.00034987,7]
[367066615,1750643477668,-490.0,0.00034987,7]
[367066616,1750643477678,-500.0,0.00034987,7]
[367066617,1750643477687,-557.39,0.00034987,7]
[367066618,1750643477697,-490.0,0.00034987,7]
[367066619,1750643477707,-490.0,0.00034987,7]
[367066620,1750643477716,-490.0,0.00034987,7]
[367066621,1750643477726,-513.01,0.00034987,7]
[367066622,1750643477735,-490.0,0.00034987,7]
[367066623,1750643477745,-554.35,0.00034987,7]
[367066624,1750643477755,-600.12346343,0.00034987,7]